[Event "Titled Tuesday Blitz January 03 Early 2023"]
[White "Novikova, Galina"]
[Black "Turzo, Attila"]
[WhiteFideId "4157095"]
[BlackFideId "704954"]
[WhiteElo "2073"]
[BlackElo "2279"]
[Result "0-1"]
[Round "09"]
[TimeControl "180+2"]
[Date "2023.01.03"]
[WhiteClock "0:00:03"]
[BlackClock "0:00:10"]

1. e4 {[%clk 0:03:00]}  c5 {[%clk 0:02:59]} 2. Nf3 {[%clk 0:03:00]}  d6 {[%clk 0:02:59]} 3. d4 {[%clk 0:03:01]}  cxd4 {[%clk 0:03:00]} 4. Nxd4 {[%clk 0:03:01]}  Nf6 {[%clk 0:03:00]} 5. Nc3 {[%clk 0:03:01]}  a6 {[%clk 0:03:01]} 6. h3 {[%clk 0:03:02]}  e5 {[%clk 0:02:59]} 7. Nde2 {[%clk 0:03:03]}  Be6 {[%clk 0:02:57]} 8. g4 {[%clk 0:03:03]}  h5 {[%clk 0:02:53]} 9. g5 {[%clk 0:03:02]}  Nfd7 {[%clk 0:02:52]} 10. h4 {[%clk 0:03:02]}  Nb6 {[%clk 0:02:48]} 11. Ng3 {[%clk 0:03:00]}  d5 {[%clk 0:02:48]} 12. Nxh5 {[%clk 0:02:43]}  Nc6 {[%clk 0:02:36]} 13. Bg2 {[%clk 0:02:23]}  d4 {[%clk 0:02:09]} 14. Nb1 {[%clk 0:02:17]}  Qd7 {[%clk 0:02:02]} 15. Ng3 {[%clk 0:01:55]}  O-O-O {[%clk 0:02:00]} 16. Nd2 {[%clk 0:01:48]}  d3 {[%clk 0:01:58]} 17. c3 {[%clk 0:01:45]}  f6 {[%clk 0:01:34]} 18. g6 {[%clk 0:01:39]}  Kb8 {[%clk 0:01:08]} 19. a4 {[%clk 0:01:37]}  Bc5 {[%clk 0:00:52]} 20. h5 {[%clk 0:01:23]}  Ne7 {[%clk 0:00:45]} 21. b4 {[%clk 0:01:16]}  Bd6 {[%clk 0:00:42]} 22. b5 {[%clk 0:01:01]}  axb5 {[%clk 0:00:40]} 23. axb5 {[%clk 0:00:58]}  Qxb5 {[%clk 0:00:40]} 24. Rb1 {[%clk 0:00:54]}  Qc6 {[%clk 0:00:41]} 25. O-O {[%clk 0:00:46]}  Nec8 {[%clk 0:00:36]} 26. Nb3 {[%clk 0:00:37]}  Qxc3 {[%clk 0:00:35]} 27. Bd2 {[%clk 0:00:35]}  Qc2 {[%clk 0:00:33]} 28. Na5 {[%clk 0:00:31]}  Qxd1 {[%clk 0:00:25]} 29. Rfxd1 {[%clk 0:00:32]}  Bc5 {[%clk 0:00:25]} 30. Bb4 {[%clk 0:00:18]}  Bxb4 {[%clk 0:00:20]} 31. Rxb4 {[%clk 0:00:19]}  Rd7 {[%clk 0:00:19]} 32. Rdb1 {[%clk 0:00:17]}  Ka7 {[%clk 0:00:19]} 33. Ra1 {[%clk 0:00:15]}  Kb8 {[%clk 0:00:19]} 34. Rab1 {[%clk 0:00:15]}  d2 {[%clk 0:00:20]} 35. Bf3 {[%clk 0:00:15]}  Rhd8 {[%clk 0:00:20]} 36. Bd1 {[%clk 0:00:15]}  Rc7 {[%clk 0:00:18]} 37. Nf1 {[%clk 0:00:14]}  Rc1 {[%clk 0:00:17]} 38. Ne3 {[%clk 0:00:15]}  Rxb1 {[%clk 0:00:17]} 39. Rxb1 {[%clk 0:00:16]}  Kc7 {[%clk 0:00:15]} 40. Kg2 {[%clk 0:00:09]}  Rd4 {[%clk 0:00:15]} 41. Kf3 {[%clk 0:00:06]}  Ne7 {[%clk 0:00:16]} 42. Nb3 {[%clk 0:00:05]}  Rd3 {[%clk 0:00:15]} 43. Nc5 {[%clk 0:00:04]}  Rd6 {[%clk 0:00:15]} 44. Nxe6+ {[%clk 0:00:04]}  Rxe6 {[%clk 0:00:16]} 45. Rb2 {[%clk 0:00:05]}  Rd6 {[%clk 0:00:16]} 46. Ke2 {[%clk 0:00:04]}  Nc6 {[%clk 0:00:15]} 47. Rxd2 {[%clk 0:00:05]}  Nd4+ {[%clk 0:00:14]} 48. Ke1 {[%clk 0:00:04]}  Nd7 {[%clk 0:00:13]} 49. h6 {[%clk 0:00:04]}  gxh6 {[%clk 0:00:09]} 50. g7 {[%clk 0:00:04]}  Nc5 {[%clk 0:00:08]} 51. g8=Q {[%clk 0:00:04]}  Nxe4 {[%clk 0:00:09]} 52. Qg7+ {[%clk 0:00:03]}  Rd7 {[%clk 0:00:08]} 53. Qxh6 {[%clk 0:00:03]}  Nf3+ {[%clk 0:00:08]} 54. Bxf3 {[%clk 0:00:01]}  Nxd2 {[%clk 0:00:07]} 55. Ke2 {[%clk 0:00:01]}  Nb3 {[%clk 0:00:07]} 56. Qg6 {[%clk 0:00:02]}  Nd4+ {[%clk 0:00:07]} 57. Kf1 {[%clk 0:00:02]}  Nxf3 {[%clk 0:00:08]} 58. Qe4 {[%clk 0:00:03]}  Nd2+ {[%clk 0:00:08]} 59. Kg2 {[%clk 0:00:01]}  Nxe4 {[%clk 0:00:09]} 60. Nf5 {[%clk 0:00:01]}  Nd6 {[%clk 0:00:09]} 61. Ng7 {[%clk 0:00:01]}  f5 {[%clk 0:00:09]} 62. Nh5 {[%clk 0:00:02]}  f4 {[%clk 0:00:09]} 63. Nf6 {[%clk 0:00:03]}  Rf7 {[%clk 0:00:09]} 64. Nd5+ {[%clk 0:00:03]}  Kc6 {[%clk 0:00:10]} 65. Nc3 {[%clk 0:00:02]}  b5 {[%clk 0:00:10]} 66. Nd1 {[%clk 0:00:02]}  b4 {[%clk 0:00:10]} 67. Nb2 {[%clk 0:00:02]}  Kc5 {[%clk 0:00:10]} 68. Nd3+ {[%clk 0:00:03]}  Kd4 {[%clk 0:00:10]} 69. Nxb4 {[%clk 0:00:04]}  e4 {[%clk 0:00:10]} 70. Nc6+ {[%clk 0:00:03]}  Kd5 {[%clk 0:00:10]} 71. Nd8 {[%clk 0:00:03]}  Rg7+ {[%clk 0:00:09]} 72. Kf1 {[%clk 0:00:03]}  Nb7 {[%clk 0:00:10]} 0-1


[Site "https://www.chess.com"]

[Event "Titled Tuesday Blitz January 03 Early 2023"]
[White "Perez Rodriguez, Jennifer"]
[Black "Parpiev, Isaak"]
[WhiteFideId "3507831"]
[BlackFideId "34281576"]
[WhiteElo "2242"]
[BlackElo "2167"]
[Result "0-1"]
[Round "09"]
[TimeControl "180+2"]
[Date "2023.01.03"]
[WhiteClock "0:01:41"]
[BlackClock "0:01:48"]

1. e4 {[%clk 0:03:00]}  c6 {[%clk 0:02:55]} 2. d4 {[%clk 0:02:58]}  d5 {[%clk 0:02:56]} 3. exd5 {[%clk 0:02:58]}  cxd5 {[%clk 0:02:56]} 4. Nf3 {[%clk 0:02:59]}  Nf6 {[%clk 0:02:54]} 5. Ne5 {[%clk 0:02:59]}  e6 {[%clk 0:02:48]} 6. Bb5+ {[%clk 0:02:58]}  Bd7 {[%clk 0:02:47]} 7. Nxd7 {[%clk 0:02:57]}  Nbxd7 {[%clk 0:02:47]} 8. O-O {[%clk 0:02:57]}  Bd6 {[%clk 0:02:47]} 9. c3 {[%clk 0:02:57]}  O-O {[%clk 0:02:47]} 10. Bg5 {[%clk 0:02:54]}  a6 {[%clk 0:02:45]} 11. Bd3 {[%clk 0:02:54]}  h6 {[%clk 0:02:43]} 12. Bh4 {[%clk 0:02:53]}  b5 {[%clk 0:02:43]} 13. Re1 {[%clk 0:02:47]}  Qc7 {[%clk 0:02:42]} 14. Bg3 {[%clk 0:02:42]}  Bxg3 {[%clk 0:02:42]} 15. hxg3 {[%clk 0:02:43]}  Rfb8 {[%clk 0:02:40]} 16. Qe2 {[%clk 0:02:39]}  Qc6 {[%clk 0:02:31]} 17. Na3 {[%clk 0:02:35]}  b4 {[%clk 0:02:30]} 18. Nb1 {[%clk 0:02:31]}  a5 {[%clk 0:02:28]} 19. c4 {[%clk 0:02:29]}  dxc4 {[%clk 0:02:27]} 20. Bxc4 {[%clk 0:02:29]}  Nb6 {[%clk 0:02:26]} 21. Nd2 {[%clk 0:02:28]}  Rd8 {[%clk 0:02:23]} 22. Bb5 {[%clk 0:02:24]}  Qb7 {[%clk 0:02:18]} 23. Nf3 {[%clk 0:02:23]}  Nbd5 {[%clk 0:02:12]} 24. Rac1 {[%clk 0:02:21]}  Rab8 {[%clk 0:02:12]} 25. Bd3 {[%clk 0:02:18]}  Qb6 {[%clk 0:02:09]} 26. Bb1 {[%clk 0:02:14]}  Rbc8 {[%clk 0:02:05]} 27. Rcd1 {[%clk 0:02:07]}  a4 {[%clk 0:02:03]} 28. Ne5 {[%clk 0:02:06]}  a3 {[%clk 0:01:59]} 29. bxa3 {[%clk 0:02:05]}  Nc3 {[%clk 0:01:56]} 30. Qd3 {[%clk 0:02:01]}  Nxd1 {[%clk 0:01:56]} 31. Rxd1 {[%clk 0:01:59]}  Rc3 {[%clk 0:01:54]} 32. Qe2 {[%clk 0:01:51]}  Rxd4 {[%clk 0:01:52]} 33. Rxd4 {[%clk 0:01:41]}  Qxd4 {[%clk 0:01:53]} 34. axb4 {[%clk 0:01:40]}  Rc1+ {[%clk 0:01:51]} 35. Kh2 {[%clk 0:01:41]}  Qxe5 {[%clk 0:01:48]} 0-1


[Site "https://www.chess.com"]

[Event "Titled Tuesday Blitz January 03 Early 2023"]
[White "Murtazin, Ruslan"]
[Black "Lopez Del Alamo, Antonio"]
[WhiteFideId "24175960"]
[BlackFideId "2227339"]
[WhiteElo "2247"]
[BlackElo "2280"]
[Result "1-0"]
[Round "09"]
[TimeControl "180+2"]
[Date "2023.01.03"]
[WhiteClock "0:02:20"]
[BlackClock "0:02:17"]

1. e4 {[%clk 0:02:59]}  c5 {[%clk 0:02:58]} 2. Nf3 {[%clk 0:02:59]}  e6 {[%clk 0:02:58]} 3. b3 {[%clk 0:02:58]}  Nc6 {[%clk 0:02:55]} 4. Bb2 {[%clk 0:02:58]}  d6 {[%clk 0:02:54]} 5. g3 {[%clk 0:02:57]}  Nf6 {[%clk 0:02:54]} 6. d3 {[%clk 0:02:58]}  Be7 {[%clk 0:02:52]} 7. Bg2 {[%clk 0:02:58]}  O-O {[%clk 0:02:52]} 8. O-O {[%clk 0:02:59]}  Qc7 {[%clk 0:02:49]} 9. Re1 {[%clk 0:02:57]}  e5 {[%clk 0:02:48]} 10. h3 {[%clk 0:02:57]}  a6 {[%clk 0:02:45]} 11. c3 {[%clk 0:02:56]}  b5 {[%clk 0:02:43]} 12. d4 {[%clk 0:02:57]}  cxd4 {[%clk 0:02:42]} 13. cxd4 {[%clk 0:02:57]}  Bb7 {[%clk 0:02:38]} 14. Nc3 {[%clk 0:02:54]}  Rac8 {[%clk 0:02:30]} 15. Rc1 {[%clk 0:02:53]}  exd4 {[%clk 0:02:25]} 16. Nxd4 {[%clk 0:02:52]}  Qb6 {[%clk 0:02:26]} 17. Nf5 {[%clk 0:02:51]}  Rfe8 {[%clk 0:02:21]} 18. Nd5 {[%clk 0:02:22]}  Nxd5 {[%clk 0:02:17]} 19. exd5 {[%clk 0:02:23]}  Bf8 {[%clk 0:02:17]} 20. dxc6 {[%clk 0:02:20]} 1-0


[Site "https://www.chess.com"]

[Event "Titled Tuesday Blitz January 03 Early 2023"]
[White "djokovic74"]
[Black "Begunov, Konstantin"]
[BlackFideId "4118510"]
[WhiteElo "2575"]
[BlackElo "2325"]
[Result "0-1"]
[Round "09"]
[TimeControl "180+2"]
[Date "2023.01.03"]
[WhiteClock "0:01:47"]
[BlackClock "0:01:42"]

1. c4 {[%clk 0:02:55]}  c6 {[%clk 0:03:00]} 2. Nf3 {[%clk 0:02:54]}  d5 {[%clk 0:03:00]} 3. e3 {[%clk 0:02:55]}  Nf6 {[%clk 0:03:00]} 4. Nc3 {[%clk 0:02:56]}  a6 {[%clk 0:03:00]} 5. d4 {[%clk 0:02:56]}  Bg4 {[%clk 0:03:00]} 6. h3 {[%clk 0:02:56]}  Bxf3 {[%clk 0:03:00]} 7. Qxf3 {[%clk 0:02:57]}  e6 {[%clk 0:03:00]} 8. Bd3 {[%clk 0:02:56]}  Nbd7 {[%clk 0:03:00]} 9. O-O {[%clk 0:02:56]}  Bb4 {[%clk 0:02:53]} 10. Bd2 {[%clk 0:02:55]}  Qe7 {[%clk 0:02:52]} 11. a3 {[%clk 0:02:55]}  Bxc3 {[%clk 0:02:52]} 12. Bxc3 {[%clk 0:02:56]}  O-O {[%clk 0:02:52]} 13. e4 {[%clk 0:02:49]}  dxe4 {[%clk 0:02:51]} 14. Bxe4 {[%clk 0:02:49]}  Nxe4 {[%clk 0:02:52]} 15. Qxe4 {[%clk 0:02:50]}  Nf6 {[%clk 0:02:48]} 16. Qh4 {[%clk 0:02:49]}  Rfd8 {[%clk 0:02:48]} 17. Rfe1 {[%clk 0:02:48]}  Rd7 {[%clk 0:02:43]} 18. Re3 {[%clk 0:02:46]}  Nd5 {[%clk 0:02:31]} 19. Qxe7 {[%clk 0:02:43]}  Nxe7 {[%clk 0:02:32]} 20. g4 {[%clk 0:02:42]}  g5 {[%clk 0:02:23]} 21. Rf1 {[%clk 0:02:41]}  Ng6 {[%clk 0:02:22]} 22. Kh2 {[%clk 0:02:28]}  b5 {[%clk 0:02:22]} 23. b3 {[%clk 0:02:25]}  bxc4 {[%clk 0:02:21]} 24. bxc4 {[%clk 0:02:26]}  Rb8 {[%clk 0:02:21]} 25. Re4 {[%clk 0:02:08]}  Rb3 {[%clk 0:02:17]} 26. Bd2 {[%clk 0:02:08]}  h6 {[%clk 0:02:13]} 27. f4 {[%clk 0:02:08]}  gxf4 {[%clk 0:02:08]} 28. Bxf4 {[%clk 0:02:08]}  Nxf4 {[%clk 0:02:06]} 29. Rexf4 {[%clk 0:02:07]}  Rxa3 {[%clk 0:02:06]} 30. h4 {[%clk 0:01:57]}  Rd3 {[%clk 0:02:05]} 31. Ra1 {[%clk 0:01:54]}  R7xd4 {[%clk 0:02:00]} 32. Rxd4 {[%clk 0:01:54]}  Rxd4 {[%clk 0:02:01]} 33. Kg3 {[%clk 0:01:55]}  Rxc4 {[%clk 0:01:57]} 34. Rxa6 {[%clk 0:01:55]}  Kg7 {[%clk 0:01:54]} 35. Ra8 {[%clk 0:01:55]}  c5 {[%clk 0:01:48]} 36. Rc8 {[%clk 0:01:55]}  Rc1 {[%clk 0:01:48]} 37. Rc7 {[%clk 0:01:52]}  c4 {[%clk 0:01:45]} 38. Rc5 {[%clk 0:01:48]}  c3 {[%clk 0:01:45]} 39. Kg2 {[%clk 0:01:48]}  c2 {[%clk 0:01:43]} 40. Rc8 {[%clk 0:01:46]}  e5 {[%clk 0:01:43]} 41. Rc5 {[%clk 0:01:46]}  e4 {[%clk 0:01:42]} 42. Rc4 {[%clk 0:01:46]}  e3 {[%clk 0:01:42]} 43. Rxc2 {[%clk 0:01:47]}  Rxc2+ {[%clk 0:01:42]} 0-1


[Site "https://www.chess.com"]

[Event "Titled Tuesday Blitz January 03 Early 2023"]
[White "Iljin, Timofey"]
[Black "Forgacs, Attila Jr."]
[WhiteFideId "14110180"]
[BlackFideId "773654"]
[WhiteElo "2329"]
[BlackElo "2264"]
[Result "1-0"]
[Round "09"]
[TimeControl "180+2"]
[Date "2023.01.03"]
[WhiteClock "0:00:18"]
[BlackClock "0:00:57"]

1. d4 {[%clk 0:03:00]}  Nf6 {[%clk 0:02:59]} 2. c4 {[%clk 0:03:00]}  g6 {[%clk 0:03:00]} 3. Nc3 {[%clk 0:03:01]}  Bg7 {[%clk 0:03:00]} 4. e4 {[%clk 0:03:01]}  d6 {[%clk 0:03:01]} 5. f4 {[%clk 0:03:02]}  O-O {[%clk 0:03:01]} 6. Nf3 {[%clk 0:03:02]}  c6 {[%clk 0:03:01]} 7. Bd3 {[%clk 0:03:01]}  Na6 {[%clk 0:03:01]} 8. O-O {[%clk 0:03:01]}  Nc7 {[%clk 0:03:02]} 9. e5 {[%clk 0:02:59]}  dxe5 {[%clk 0:03:01]} 10. fxe5 {[%clk 0:02:59]}  Nfe8 {[%clk 0:02:59]} 11. Bf4 {[%clk 0:02:57]}  Bg4 {[%clk 0:02:55]} 12. Be2 {[%clk 0:02:50]}  Ne6 {[%clk 0:02:54]} 13. Be3 {[%clk 0:02:50]}  c5 {[%clk 0:02:50]} 14. d5 {[%clk 0:02:49]}  N6c7 {[%clk 0:02:43]} 15. Bf4 {[%clk 0:02:28]}  Qc8 {[%clk 0:02:33]} 16. Qd2 {[%clk 0:02:25]}  Na6 {[%clk 0:02:30]} 17. h3 {[%clk 0:02:17]}  Bxf3 {[%clk 0:02:30]} 18. Bxf3 {[%clk 0:02:18]}  e6 {[%clk 0:02:24]} 19. d6 {[%clk 0:02:17]}  Qd7 {[%clk 0:02:24]} 20. Ne4 {[%clk 0:02:06]}  f5 {[%clk 0:02:05]} 21. exf6 {[%clk 0:02:05]}  Nxf6 {[%clk 0:02:05]} 22. Rad1 {[%clk 0:01:50]}  Nxe4 {[%clk 0:02:00]} 23. Bxe4 {[%clk 0:01:51]}  Bd4+ {[%clk 0:01:56]} 24. Kh1 {[%clk 0:01:52]}  e5 {[%clk 0:01:56]} 25. Bh6 {[%clk 0:01:52]}  Rxf1+ {[%clk 0:01:55]} 26. Rxf1 {[%clk 0:01:53]}  Qxd6 {[%clk 0:01:55]} 27. Bxb7 {[%clk 0:01:52]}  Rb8 {[%clk 0:01:38]} 28. Bd5+ {[%clk 0:01:42]}  Kh8 {[%clk 0:01:38]} 29. Rf7 {[%clk 0:01:27]}  e4 {[%clk 0:01:38]} 30. b3 {[%clk 0:00:35]}  e3 {[%clk 0:01:28]} 31. Bxe3 {[%clk 0:00:34]}  Bg7 {[%clk 0:01:05]} 32. Rxg7 {[%clk 0:00:23]}  Kxg7 {[%clk 0:01:04]} 33. Qc3+ {[%clk 0:00:23]}  Kf8 {[%clk 0:01:00]} 34. Qh8+ {[%clk 0:00:20]}  Ke7 {[%clk 0:01:00]} 35. Qxh7+ {[%clk 0:00:20]}  Kf6 {[%clk 0:00:59]} 36. Qh4+ {[%clk 0:00:18]}  Kg7 {[%clk 0:00:56]} 37. Bh6+ {[%clk 0:00:18]}  Kh7 {[%clk 0:00:56]} 38. Bf4+ {[%clk 0:00:18]}  Kg7 {[%clk 0:00:57]} 39. Bxd6 {[%clk 0:00:18]} 1-0


[Site "https://www.chess.com"]

[Event "Titled Tuesday Blitz January 03 Early 2023"]
[White "Kaminski, Victor"]
[Black "Bazarov, Konstantin"]
[WhiteFideId "1131630"]
[BlackFideId "4137000"]
[WhiteElo "2247"]
[BlackElo "2235"]
[Result "1-0"]
[Round "09"]
[TimeControl "180+2"]
[Date "2023.01.03"]
[WhiteClock "0:00:08"]
[BlackClock "0:00:31"]

1. e4 {[%clk 0:02:59]}  d5 {[%clk 0:02:59]} 2. exd5 {[%clk 0:02:56]}  Qxd5 {[%clk 0:03:00]} 3. Nc3 {[%clk 0:02:57]}  Qd6 {[%clk 0:03:00]} 4. Nf3 {[%clk 0:02:56]}  Nf6 {[%clk 0:03:00]} 5. Be2 {[%clk 0:02:56]}  Bf5 {[%clk 0:02:57]} 6. d3 {[%clk 0:02:56]}  Nc6 {[%clk 0:02:56]} 7. Be3 {[%clk 0:02:53]}  e5 {[%clk 0:02:53]} 8. O-O {[%clk 0:02:52]}  Rd8 {[%clk 0:02:48]} 9. Nd2 {[%clk 0:02:52]}  Be7 {[%clk 0:02:46]} 10. Nde4 {[%clk 0:02:48]}  Qd7 {[%clk 0:02:40]} 11. Nxf6+ {[%clk 0:02:42]}  Bxf6 {[%clk 0:02:39]} 12. Ne4 {[%clk 0:02:39]}  Bxe4 {[%clk 0:02:31]} 13. dxe4 {[%clk 0:02:40]}  Qe7 {[%clk 0:02:29]} 14. Qe1 {[%clk 0:02:35]}  Bg5 {[%clk 0:02:26]} 15. Bb5 {[%clk 0:02:35]}  O-O {[%clk 0:02:16]} 16. Bxc6 {[%clk 0:02:33]}  bxc6 {[%clk 0:02:14]} 17. Bxg5 {[%clk 0:02:32]}  Qxg5 {[%clk 0:02:13]} 18. Qc3 {[%clk 0:02:33]}  Rd6 {[%clk 0:02:09]} 19. Rae1 {[%clk 0:02:23]}  Rg6 {[%clk 0:02:05]} 20. g3 {[%clk 0:02:19]}  h5 {[%clk 0:02:02]} 21. Re3 {[%clk 0:02:13]}  h4 {[%clk 0:02:00]} 22. Rf3 {[%clk 0:02:10]}  Re8 {[%clk 0:01:56]} 23. Rf5 {[%clk 0:02:08]}  Qe7 {[%clk 0:01:56]} 24. Rd1 {[%clk 0:02:03]}  Rd6 {[%clk 0:01:53]} 25. Rd3 {[%clk 0:02:01]}  f6 {[%clk 0:01:49]} 26. Rh5 {[%clk 0:01:40]}  Rxd3 {[%clk 0:01:32]} 27. cxd3 {[%clk 0:01:37]}  hxg3 {[%clk 0:01:30]} 28. hxg3 {[%clk 0:01:35]}  Qe6 {[%clk 0:01:30]} 29. Kg2 {[%clk 0:01:32]}  Rd8 {[%clk 0:01:29]} 30. Rh1 {[%clk 0:01:30]}  Qxa2 {[%clk 0:01:25]} 31. Qxc6 {[%clk 0:01:30]}  Qf7 {[%clk 0:01:16]} 32. Ra1 {[%clk 0:01:13]}  Rxd3 {[%clk 0:01:04]} 33. Rxa7 {[%clk 0:01:12]}  Rd7 {[%clk 0:01:04]} 34. b4 {[%clk 0:01:12]}  Kh7 {[%clk 0:01:02]} 35. b5 {[%clk 0:01:11]}  Rd4 {[%clk 0:01:00]} 36. Qxc7 {[%clk 0:00:56]}  Qg6 {[%clk 0:00:53]} 37. Qc6 {[%clk 0:00:50]}  Rxe4 {[%clk 0:00:52]} 38. b6 {[%clk 0:00:45]}  Rb4 {[%clk 0:00:51]} 39. Ra4 {[%clk 0:00:35]}  Rb2 {[%clk 0:00:46]} 40. Rh4+ {[%clk 0:00:34]}  Kg8 {[%clk 0:00:44]} 41. Qc4+ {[%clk 0:00:31]}  Kf8 {[%clk 0:00:41]} 42. Rh8+ {[%clk 0:00:31]}  Ke7 {[%clk 0:00:40]} 43. Qc7+ {[%clk 0:00:26]}  Ke6 {[%clk 0:00:40]} 44. Qc6+ {[%clk 0:00:15]}  Kf5 {[%clk 0:00:39]} 45. b7 {[%clk 0:00:06]}  Qg4 {[%clk 0:00:31]} 46. Qc8+ {[%clk 0:00:05]}  Kg5 {[%clk 0:00:30]} 47. Qxg4+ {[%clk 0:00:06]}  Kxg4 {[%clk 0:00:30]} 48. b8=Q {[%clk 0:00:07]}  Rxb8 {[%clk 0:00:29]} 49. Rxb8 {[%clk 0:00:08]}  Kf5 {[%clk 0:00:30]} 50. Rg8 {[%clk 0:00:07]}  g6 {[%clk 0:00:30]} 51. f3 {[%clk 0:00:08]}  Kg5 {[%clk 0:00:30]} 52. Kf2 {[%clk 0:00:07]}  Kh6 {[%clk 0:00:31]} 53. Ke3 {[%clk 0:00:07]}  Kh7 {[%clk 0:00:32]} 54. Rc8 {[%clk 0:00:07]}  Kg7 {[%clk 0:00:32]} 55. Rc6 {[%clk 0:00:07]}  Kf7 {[%clk 0:00:32]} 56. g4 {[%clk 0:00:08]}  Ke7 {[%clk 0:00:32]} 57. Ke4 {[%clk 0:00:08]}  Kf7 {[%clk 0:00:32]} 58. g5 {[%clk 0:00:08]}  fxg5 {[%clk 0:00:31]} 59. Kxe5 {[%clk 0:00:08]} 1-0


[Site "https://www.chess.com"]

[Event "Titled Tuesday Blitz January 03 Early 2023"]
[White "Donskov, Anatoly"]
[Black "Samunenkov, Ihor"]
[WhiteFideId "24143413"]
[BlackFideId "14187086"]
[WhiteElo "2279"]
[BlackElo "2501"]
[Result "0-1"]
[Round "09"]
[TimeControl "180+2"]
[Date "2023.01.03"]
[WhiteClock "0:00:54"]
[BlackClock "0:00:50"]

1. e4 {[%clk 0:02:59]}  c6 {[%clk 0:02:59]} 2. d4 {[%clk 0:02:59]}  d5 {[%clk 0:02:59]} 3. Nc3 {[%clk 0:02:59]}  dxe4 {[%clk 0:02:59]} 4. Nxe4 {[%clk 0:03:00]}  Nf6 {[%clk 0:03:00]} 5. Nxf6+ {[%clk 0:03:00]}  exf6 {[%clk 0:03:01]} 6. c3 {[%clk 0:03:00]}  Bd6 {[%clk 0:03:01]} 7. Bd3 {[%clk 0:03:01]}  Na6 {[%clk 0:03:02]} 8. Ne2 {[%clk 0:03:00]}  Nc7 {[%clk 0:03:03]} 9. Qc2 {[%clk 0:03:01]}  h5 {[%clk 0:02:59]} 10. Be3 {[%clk 0:03:01]}  Nd5 {[%clk 0:02:58]} 11. Bd2 {[%clk 0:03:01]}  Kf8 {[%clk 0:02:54]} 12. a3 {[%clk 0:02:56]}  b5 {[%clk 0:02:50]} 13. O-O {[%clk 0:02:49]}  Rb8 {[%clk 0:02:28]} 14. c4 {[%clk 0:02:43]}  bxc4 {[%clk 0:02:27]} 15. Bxc4 {[%clk 0:02:44]}  Be6 {[%clk 0:02:23]} 16. b4 {[%clk 0:02:41]}  h4 {[%clk 0:02:19]} 17. h3 {[%clk 0:02:37]}  g6 {[%clk 0:02:14]} 18. Bb3 {[%clk 0:02:24]}  Rc8 {[%clk 0:02:09]} 19. Nc3 {[%clk 0:02:09]}  Bb8 {[%clk 0:01:59]} 20. Ne4 {[%clk 0:01:47]}  Kg7 {[%clk 0:01:44]} 21. Rac1 {[%clk 0:01:40]}  Bf5 {[%clk 0:01:40]} 22. Rce1 {[%clk 0:01:14]}  Re8 {[%clk 0:01:23]} 23. Qd3 {[%clk 0:01:00]}  Re7 {[%clk 0:01:02]} 24. Bc2 {[%clk 0:00:55]}  Qc7 {[%clk 0:00:57]} 25. f4 {[%clk 0:00:54]}  Rce8 {[%clk 0:00:50]} 0-1


[Site "https://www.chess.com"]

[Event "Titled Tuesday Blitz January 03 Early 2023"]
[White "Szyszylo, Rafal"]
[Black "Odegov, Artem"]
[WhiteFideId "1109626"]
[BlackFideId "34183644"]
[WhiteElo "2091"]
[BlackElo "2261"]
[Result "0-1"]
[Round "09"]
[TimeControl "180+2"]
[Date "2023.01.03"]
[WhiteClock "0:00:02"]
[BlackClock "0:00:48"]

1. e4 {[%clk 0:03:00]}  d6 {[%clk 0:02:55]} 2. d4 {[%clk 0:03:00]}  Nd7 {[%clk 0:02:55]} 3. g3 {[%clk 0:03:00]}  e5 {[%clk 0:02:54]} 4. Ne2 {[%clk 0:02:59]}  Ngf6 {[%clk 0:02:52]} 5. Bg2 {[%clk 0:02:58]}  g6 {[%clk 0:02:51]} 6. h3 {[%clk 0:02:58]}  Bg7 {[%clk 0:02:48]} 7. O-O {[%clk 0:02:58]}  O-O {[%clk 0:02:41]} 8. a4 {[%clk 0:02:43]}  exd4 {[%clk 0:02:41]} 9. Nxd4 {[%clk 0:02:42]}  Re8 {[%clk 0:02:41]} 10. Re1 {[%clk 0:02:42]}  Nc5 {[%clk 0:02:41]} 11. Nc3 {[%clk 0:02:36]}  Be6 {[%clk 0:02:36]} 12. Be3 {[%clk 0:02:11]}  Bc4 {[%clk 0:02:32]} 13. b3 {[%clk 0:02:10]}  Ba6 {[%clk 0:02:31]} 14. b4 {[%clk 0:01:34]}  Ncxe4 {[%clk 0:02:20]} 15. Nxe4 {[%clk 0:01:32]}  Nxe4 {[%clk 0:02:20]} 16. Bxe4 {[%clk 0:01:21]}  Rxe4 {[%clk 0:02:21]} 17. b5 {[%clk 0:01:21]}  Qf6 {[%clk 0:02:16]} 18. c3 {[%clk 0:01:17]}  Rae8 {[%clk 0:02:15]} 19. bxa6 {[%clk 0:01:15]}  bxa6 {[%clk 0:02:16]} 20. Qd3 {[%clk 0:01:00]}  c5 {[%clk 0:02:10]} 21. Ne2 {[%clk 0:00:51]}  h5 {[%clk 0:01:58]} 22. h4 {[%clk 0:00:49]}  Kh7 {[%clk 0:01:49]} 23. Red1 {[%clk 0:00:47]}  Qf3 {[%clk 0:01:46]} 24. Nf4 {[%clk 0:00:23]}  Rxe3 {[%clk 0:01:38]} 25. fxe3 {[%clk 0:00:23]}  Rxe3 {[%clk 0:01:39]} 26. Qf1 {[%clk 0:00:22]}  Qxg3+ {[%clk 0:01:39]} 27. Ng2 {[%clk 0:00:22]}  Rf3 {[%clk 0:01:37]} 28. Qe1 {[%clk 0:00:19]}  Qg4 {[%clk 0:01:37]} 29. Rac1 {[%clk 0:00:15]}  Rg3 {[%clk 0:01:37]} 30. Rd2 {[%clk 0:00:14]}  Qxh4 {[%clk 0:01:28]} 31. Rf2 {[%clk 0:00:12]}  Qg5 {[%clk 0:01:27]} 32. Rd1 {[%clk 0:00:11]}  h4 {[%clk 0:01:27]} 33. Kf1 {[%clk 0:00:10]}  h3 {[%clk 0:01:27]} 34. Ne3 {[%clk 0:00:09]}  Rxe3 {[%clk 0:01:26]} 35. Re2 {[%clk 0:00:07]}  Rf3+ {[%clk 0:01:25]} 36. Rf2 {[%clk 0:00:07]}  Rg3 {[%clk 0:00:56]} 37. Qe8 {[%clk 0:00:02]}  Rg1+ {[%clk 0:00:53]} 38. Ke2 {[%clk 0:00:03]}  Qh5+ {[%clk 0:00:51]} 39. Rf3 {[%clk 0:00:02]}  Rxd1 {[%clk 0:00:50]} 40. Qxf7 {[%clk 0:00:02]}  Rg1 {[%clk 0:00:48]} 0-1


[Site "https://www.chess.com"]